Cogmind - Beta 13 @@@ ROGUE MODE // 2024.07.11 @ 16:30:15 Player: Sionnis Result: Destroyed by as-86456 with Assembled Maul Performance ------------- Evolutions (0) 0 Regions Visited (4) 800 Robots Destroyed (28) 140 Value Destroyed (600) 600 Prototype IDs (0) 0 Alien Tech Used (0) 0 Bonus (0) 0 TOTAL SCORE: 1540 Bonus ------- None Cogmind --------- Core Integrity 0/250 Matter 251/300 Energy 120/125 System Corruption 1% Temperature Cool (34) Movement Treading (320) Ox2 Location -9/Mines Parts ------- > --- POWER (1) -------- Light Ion Engine > --- PROPULSION (2) --- Light Treads Light Treads > --- UTILITY (2) ------ Huge Storage Unit Sensor Array > --- WEAPON (2) ------- Beam Cannon Battle Rifle > --- INVENTORY (25) --- Light Ion Engine Light Treads Light Treads Light Treads Light Treads Light Treads Compact Wheel Large Storage Unit High-capacity Matter Pod (200) High-capacity Matter Pod (200) Compact Matter Pod (150) Signal Interpreter ECM Suite Hacking Suite Hacking Suite Light Assault Rifle Light Assault Rifle Light Assault Rifle Light Assault Rifle Light Assault Rifle Light Assault Rifle Datajack Hammer Peak State ------------ > --- POWER ------------ Light Ion Engine > --- PROPULSION ------- Light Treads Light Treads > --- UTILITY ---------- Huge Storage Unit Sensor Array > --- WEAPON ----------- Beam Cannon Light Assault Rifle > --- INVENTORY -------- Light Ion Engine Light Treads Light Treads Light Treads Light Treads Light Treads Light Treads Compact Wheel Large Storage Unit High-capacity Matter Pod High-capacity Matter Pod Compact Matter Pod Signal Interpreter ECM Suite Hacking Suite Hacking Suite Light Assault Rifle Light Assault Rifle Light Assault Rifle Light Assault Rifle Light Assault Rifle Battle Rifle Datajack Hammer [Rating: 10] Favorites ----------- Power Light Ion Engine Engine Light Ion Engine Propulsion Light Treads Treads Light Treads Utility Huge Storage Unit Device Sensor Array Storage Huge Storage Unit Protection Light Armor Plating Weapon Light Assault Rifle Energy Gun EM Pulse Gun Energy Cannon Beam Cannon Ballistic Gun Light Assault Rifle Launcher Grenade Launcher Special Weapon Welding Torch Build | -11 -10 -10 -10 -9 ------- Run | Yrd Mat Min Exi Min Slots Evolved . | . . . . . Power . | . . . . . Propulsion . | . . . . . Utility . | . . . . . Weapon . | . . . . . Parts Attached 23 | 6 14 . 3 . Power 2 | 1 1 . . . Engine 2 | 1 1 . . . Core . | . . . . . Reactor . | . . . . . Propulsion 6 | 2 3 . 1 . Treads 6 | 2 3 . 1 . Leg . | . . . . . Wheel . | . . . . . Hover . | . . . . . Flight . | . . . . . Utility 4 | 1 3 . . . Device 1 | . 1 . . . Storage 2 | 1 1 . . . Processor . | . . . . . Hackware . | . . . . . Protection 1 | . 1 . . . Artifact . | . . . . . Weapon 11 | 2 7 . 2 . Energy Gun 3 | 2 1 . . . Energy Cannon 2 | . 1 . 1 . Ballistic Gun 4 | . 3 . 1 . Ballistic Cannon . | . . . . . Launcher 1 | . 1 . . . Special Weapon 1 | . 1 . . . Impact Weapon . | . . . . . Slashing Weapon . | . . . . . Piercing Weapon . | . . . . . Special Melee Weapon . | . . . . . Unidentified Prototypes . | . . . . . Parts Lost 8 | . 8 . . . Power 1 | . 1 . . . Propulsion 2 | . 2 . . . Utility 1 | . 1 . . . Weapon 4 | . 4 . . . Highest Loss Streak 6 | . 6 . . . To Critical Strikes . | . . . . . Average Slot Usage (%) 88 | . 89 100 71 100 Engine 14 | . 14 14 14 14 Treads 27 | . 27 28 28 28 Device 9 | . 2 14 14 14 Storage 14 | . 14 14 14 14 Protection 1 | . 2 . . . Energy Gun 3 | . 9 . . . Energy Cannon 7 | . 7 14 . 14 Ballistic Gun 9 | . 10 14 . 14 Naked Turns . | . . . . . Heaviest Build 92 | 14 92 88 89 89 Greatest Support 40 | 40 40 40 40 40 Greatest Overweight (x) 2 | 1 2 2 2 2 Average Overweight (x) 1 | . 1 2 2 2 Largest Inventory Capacity 25 | 8 25 25 25 25 Average Capacity 24 | 6 24 25 25 25 Most Carried 25 | 3 22 24 25 23 Average Carried 19 | 1 12 22 24 23 Final Capacity 25 | 8 25 25 25 25 Final Carried 24 | 3 22 24 23 23 Class Distribution -------------------- 100% | Mutant Dominant Class ---------------- Mutant | -10/Materials Mutant | -10/Mines Mutant | -10/Exiles Mutant | -9/Mines Resources | -11 -10 -10 -10 -9 ----------- Run | Yrd Mat Min Exi Min Matter Collected 718 | 229 450 39 . . Remotely . | . . . . . Salvage Created 795 | . 741 54 . . Parts 48 | . 42 6 . . Haulers Intercepted 2 | . 2 . . . Recyclers Shooed 1 | . . 1 . . Parts Field Recycled . | . . . . . Retrieved Matter . | . . . . . Parts Self-Destructed . | . . . . . Prevented . | . . . . . Kills | -11 -10 -10 -10 -9 ------- Run | Yrd Mat Min Exi Min Combat Hostiles Destroyed 20 | . 17 3 . . Guns 12 | . 12 . . . Cannons 4 | . 1 3 . . AOE 3 | . 3 . . . Classes Destroyed 9 | . 8 1 . . Worker 1 | . 1 . . . Builder 1 | . 1 . . . Tunneler 1 | . . 1 . . Hauler 2 | . 2 . . . Operator 1 | . 1 . . . Watcher 2 | . 2 . . . Swarmer 9 | . 6 3 . . Grunt 8 | . 8 . . . Subdweller 3 | . 3 . . . Best Kill Streak 8 | . 8 3 . . Combat Bots Only 6 | . 6 3 . . Max Kills in Single Turn 2 | . 2 1 . . Gunslinging . | . . . . . Exploded 1 | . 1 . . . Melee . | . . . . . Uniques/NPCs Destroyed . | . . . . . Combat | -11 -10 -10 -10 -9 -------- Run | Yrd Mat Min Exi Min Hostile Shots Fired 116 | . 93 16 . 7 Missed 38 | . 32 3 . 3 Damage Taken 1293 | . 1113 113 . 67 Core 256 | . 162 42 . 52 Absorbed by Shields . | . . . . . Regen/Repaired (Parts) 118 | . 118 . . . Core Remaining (%) 100 | 100 . . . . Volleys Fired 87 | . 76 10 . 1 Largest 2 | . 2 2 . 2 Hottest 90 | . 90 80 . 85 Shots Fired 157 | . 135 20 . 2 Gun 136 | . 125 10 . 1 Cannon 17 | . 6 10 . 1 Launcher 4 | . 4 . . . Special . | . . . . . Kinetic 34 | . 23 10 . 1 Thermal 61 | . 50 10 . 1 Explosive 4 | . 4 . . . Electromagnetic 58 | . 58 . . . Robot Hit Streak 17 | . 17 6 . 1 Robot Miss Streak 4 | . 4 4 . 1 Penetration Max . | . . . . . Secondary Targets . | . . . . . Shots Hit Robots 91 | . 80 10 . 1 Core Hits 40 | . 37 3 . . Critical Kills . | . . . . . Critical Parts Destroyed 1 | . . . . 1 Critical Strikes 9 | . 8 . . 1 Burn 4 | . 4 . . . Destroy 1 | . . . . 1 Corrupt 4 | . 4 . . . Melee Attacks . | . . . . . Impact . | . . . . . Slashing . | . . . . . Piercing . | . . . . . Sneak Attacks . | . . . . . Combat Hostiles . | . . . . . Follow-up Attacks . | . . . . . Damage Inflicted 2013 | 4 1813 182 . 14 Guns 1043 | . 1001 28 . 14 Cannons 195 | . 74 121 . . Explosions 712 | . 712 . . . Melee . | . . . . . Ramming 63 | 4 26 33 . . Kinetic 166 | . 124 28 . 14 Thermal 802 | . 681 121 . . Explosive 474 | . 474 . . . Electromagnetic 508 | . 508 . . . Impact . | . . . . . Slashing . | . . . . . Piercing . | . . . . . Highest Corruption 1 | . 1 1 1 1 Average Corruption 1 | . 1 1 1 1 Corruption Purged . | . . . . . Corruption Blocked . | . . . . . Effects 37 | . 21 11 5 . Message Errors 5 | . 3 1 1 . Matter Fused 12 | . 6 4 2 . Heat Flow Errors 4 | . 1 1 2 . Energy Discharges 3 | . 1 2 . . Parts Fused 1 | . 1 . . . Data Loss (minor) 6 | . 3 3 . . Data Loss (major) 2 | . 2 . . . Misfires 2 | . 2 . . . Alerts 1 | . 1 . . . Weapon Failures 1 | . 1 . . . Overload Shots . | . . . . . Overflow Damage 42 | . 30 12 . . Projectiles 12 | . . 12 . . Explosions 30 | . 30 . . . Melee . | . . . . . Knockbacks . | . . . . . Impact . | . . . . . Kinetic . | . . . . . Secondary . | . . . . . Self-Inflicted Damage 225 | . 225 . . . Shots 7 | . 7 . . . Rammed 9 | 1 2 6 . . Targets Rammed 10 | 1 2 7 . . Kicked . | . . . . . Crushed 1 | . . 1 . . Highest Temperature 305 | . 305 147 257 34 Average Temperature 81 | . 82 62 118 25 Received Heat Transfer 587 | . 567 . . 20 Effects 1 | . 1 . . . Interference 1 | . 1 . . . Siege Activations . | . . . . . Robots Corrupted . | . . . . . Combat Hostiles . | . . . . . Parts Fried 3 | . 3 . . . Impact Corruptions . | . . . . . Robots Melted 1 | . 1 . . . Combat Hostiles 1 | . 1 . . . Parts Melted 1 | . 1 . . . Heat Transferred 2126 | . 1867 259 . . Parts Sabotaged . | . . . . . Parts Stolen . | . . . . . Parts Stripped . | . . . . . Power Chain Reactions 4 | . 4 . . . Alert | -11 -10 -10 -10 -9 ------- Run | Yrd Mat Min Exi Min Peak Influence 205 | . 205 70 . . Initial 3 | . . 3 . . Average 39 | . 72 3 . . Maximum Alert Level 1 | . 1 . . . Low Security (%) 98 | 100 97 100 . 100 Level 1 1 | . 2 . . . Level 2 . | . . . . . Level 3 . | . . . . . Level 4 . | . . . . . Level 5 . | . . . . . High Security . | . . . . . Max Security . | . . . . . Squads Dispatched 3 | . 3 . . . Investigation 1 | . 1 . . . Extermination . | . . . . . Reinforcement 2 | . 2 . . . Assault . | . . . . . Garrison . | . . . . . Intercept . | . . . . . Searches Triggered . | . . . . . Construction Impeded . | . . . . . Haulers Reinforced . | . . . . . Active Scanning Responses . | . . . . . Cargo Convoy Interrupts . | . . . . . Stealth | -11 -10 -10 -10 -9 --------- Run | Yrd Mat Min Exi Min Distress Signals 2 | . 2 . . . Communications Jammed . | . . . . . Distress Signals . | . . . . . Times Spotted 41 | . 31 3 . 7 Peak Tracking Total 7 | . 4 3 . 7 Tactical Retreats 3 | . 3 . . . Traps | -11 -10 -10 -10 -9 ------- Run | Yrd Mat Min Exi Min Traps Triggered 2 | . 2 . . . Indirectly . | . . . . . Trap Hack Attempts . | . . . . . Triggered . | . . . . . Disarmed . | . . . . . Reprogrammed . | . . . . . Reused . | . . . . . Traps Extracted . | . . . . . Installed . | . . . . . Triggered . | . . . . . Machines | -11 -10 -10 -10 -9 ---------- Run | Yrd Mat Min Exi Min Machines Disabled 7 | . 7 . . . Max in Single Turn 3 | . 3 . . . Machines Repaired . | . . . . . Machines Dismantled . | . . . . . Machines Sabotaged . | . . . . . Overloaded Fab Kills . | . . . . . Hacking | -11 -10 -10 -10 -9 --------- Run | Yrd Mat Min Exi Min Machines Accessed 9 | . 7 1 1 . Terminals 5 | . 4 1 . . Fabricators . | . . . . . Repair Stations 1 | . 1 . . . Recycling Units 2 | . 2 . . . Scanalyzers . | . . . . . Garrison Access . | . . . . . Total Hacks 18 | . 14 3 1 . Successful 13 | . 10 2 1 . Failed 4 | . 3 1 . . Catastrophic 1 | . . 1 . . Database Lockouts 1 | . 1 . . . Manual 10 | . 7 2 1 . Terminals 11 | . 8 3 . . Fabricators . | . . . . . Repair Stations 3 | . 3 . . . Recycling Units 3 | . 3 . . . Scanalyzers . | . . . . . Garrison Access . | . . . . . Terminal Hacks 6 | . 3 2 1 . Record 1 | . . . 1 . Robot Analysis 1 | . 1 . . . Alert Level 2 | . 1 1 . . Unreport Threat 1 | . . 1 . . Registered Components 1 | . 1 . . . Fabricator Hacks . | . . . . . Repair Station Hacks 3 | . 3 . . . Scan Component 2 | . 2 . . . Repair 1 | . 1 . . . Recycling Unit Hacks 2 | . 2 . . . Retrieve Components 2 | . 2 . . . Scanalyzer . | . . . . . Garrison Access Hacks . | . . . . . Unauthorized Hacks 2 | . 2 . . . Terminals 2 | . 2 . . . Botnet 2 | . 2 . . . Fabricators . | . . . . . Repair Stations . | . . . . . Recycling Units . | . . . . . Scanalyzers . | . . . . . Garrison Access . | . . . . . Data Cores Recovered . | . . . . . Used . | . . . . . Hacking Detections 5 | . 4 1 . . Full Trace Events . | . . . . . Feedback Events . | . . . . . Feedback Blocked . | . . . . . Robot Schematics Acquired . | . . . . . Robots Built . | . . . . . Authchips . | . . . . . Time . | . . . . . Total Robot Build Rating . | . . . . . Part Schematics Acquired . | . . . . . Parts Built . | . . . . . Authchips . | . . . . . Time . | . . . . . Total Part Build Rating . | . . . . . Parts Repaired 1 | . 1 . . . Time 26 | . 26 . . . Parts Recycled . | . . . . . Recycled Matter . | . . . . . Retrieved Matter . | . . . . . Retrieved Components 12 | . 12 . . . Parts Scanalyzed . | . . . . . Part Schematics Acquired . | . . . . . Parts Damaged . | . . . . . Bothacking | -11 -10 -10 -10 -9 ------------ Run | Yrd Mat Min Exi Min Used RIF Installer . | . . . . . Robots Hacked . | . . . . . Non-combat . | . . . . . Combat . | . . . . . Robot Hacks Applied . | . . . . . Relay Couplers Released . | . . . . . Fabnet Peak Effective % . | . . . . . Robots Rewired . | . . . . . Allies Hacked . | . . . . . Hacks Repelled . | . . . . . Allies | -11 -10 -10 -10 -9 -------- Run | Yrd Mat Min Exi Min Total Allies . | . . . . . Largest Group . | . . . . . Highest-Rated Group . | . . . . . Highest-Rated Ally . | . . . . . Total Orders . | . . . . . Ally Attacks . | . . . . . Total Damage . | . . . . . Kills . | . . . . . Allies Corrupted . | . . . . . Allies Melted . | . . . . . Intel | -11 -10 -10 -10 -9 ------- Run | Yrd Mat Min Exi Min Robot Analysis Total 1 | . 1 . . . Derelict Logs Recovered 3 | . . 2 . 1 Drone Launches . | . . . . . Drone Recoveries . | . . . . . Exploration | -11 -10 -10 -10 -9 ------------- Run | Yrd Mat Min Exi Min Turns Passed 5458 | 80 2221 1827 1273 57 Spaces Moved 1634 | 46 619 555 397 17 Core 6 | 6 . . . . Treads 1628 | 40 619 555 397 17 Legs . | . . . . . Wheels . | . . . . . Hover . | . . . . . Flight . | . . . . . Fastest Speed 50 | 50 160 320 320 320 Average Speed 311 | 146 309 320 320 320 Slowest Speed 320 | 160 320 320 320 320 Overloaded Moves . | . . . . . Propulsion Burnouts . | . . . . . Robots Hopped . | . . . . . Cave-ins Triggered . | . . . . . Exploration Rate (%) 59 | 4 99 98 91 7 Regions Visited 4 Branch Regions 3 Pre-discovered Areas . | . . . . . Known Exits Taken . | . . . . . Unknown Exits Taken 4 | 1 1 1 1 . Scrap Searched 1 | . . 1 . . Spaces Dug . | . . . . . Terrain Destroyed 41 | . 41 . . . Melee . | . . . . . Projectile . | . . . . . AOE 41 | . 41 . . . Terrain Rammed . | . . . . . Walls Destroyed . | . . . . . Machines Disabled . | . . . . . Actions | -11 -10 -10 -10 -9 --------- Run | Yrd Mat Min Exi Min Total 1838 | 55 788 575 402 18 Wait 49 | . 49 . . . Move 1630 | 45 618 554 396 17 Hop . | . . . . . Pick Up 31 | 3 25 3 . . Fast Attach 13 | 6 7 . . . Attach 8 | . 6 . 2 . Detach 3 | . 1 . 2 . Swap 2 | . 1 . 1 . Drop 5 | . 3 1 1 . Fire 87 | . 76 10 . 1 Melee . | . . . . . Ram . | . . . . . Kick . | . . . . . Crush 10 | 1 2 7 . . Escape Stasis . | . . . . . Rewire . | . . . . . Trap . | . . . . . Miscellaneous . | . . . . . Route ------- -11/Scrapyard -10/Materials (discovered 5 exits: [*Mat x3] / *Min x2) -10/Mines (discovered 3 exits: [*Mat x2] / *Exi) -10/Exiles (discovered 2 exits: [*Min x2]) -9/Mines History --------- Turn | Location | Event 42 | -11/Scrapyard | Discovered new exit (range 14) 81 | -11/Scrapyard | Entered Materials 305 | -10/Materials | Build established: Mutant 602 | -10/Materials | Discovered new exit (range 8) 681 | -10/Materials | Derelicts attacked the area 727 | -10/Materials | Discovered new exit (range 11) 733 | -10/Materials | Central database locked down 862 | -10/Materials | Core integrity fell below 50% 924 | -10/Materials | Lost 6 parts (2n1u3w) 1187 | -10/Materials | Discovered new exit (range 16) 1247 | -10/Materials | Discovered new exit (range 16) 1892 | -10/Materials | Discovered new exit (range 15) 2139 | -10/Materials | Repaired Lgt. Treads 2302 | -10/Materials | Entered Mines 3567 | -10/Mines | Learned location of 1 exit from Materials 3644 | -10/Mines | Discovered new exit (range 14) 3903 | -10/Mines | Deemed a non-threat by the Exiles lab entrance 3967 | -10/Mines | Discovered new exit (range 7) 3996 | -10/Mines | Core integrity fell below 20% 4116 | -10/Mines | Discovered new exit (range 5) 4129 | -10/Mines | Entered Exiles 4129 | -10/Exiles | Found Exiles lab abandoned 4174 | -10/Exiles | Discovered new exit (range 15) 5365 | -10/Exiles | Discovered new exit (range 14) 5402 | -10/Exiles | Entered Mines 5438 | -9/Mines | Learned Materials garrison access intel 5442 | -9/Mines | Assembled infested the area 5447 | -9/Mines | Assisted by a Guerilla fighting off Assembled 5459 | -9/Mines | Destroyed by as-86456 with Assembled Maul Last Messages --------------- >>Record "MSG999999-FU" MAIN.C you're pretty crappy as far as evil overlords go. Imprinter is probably going to wreck your life and you're too stupid to see it coming. EXIT=FOUND FW2A&UBAEC#OKFBPL3 # LOCATION=UNKNOWN GOAL=ESCAPE Acquired derelict log, extracted data. Data stored: Materials garrison access intel. ALERT: Infestation in the mines, dispatching Demolisher response squad. A derelict emerges from the shadows: "You need to get out of here! I've been tracking a group of Assembled to figure out where they're coming from, and they're closing on this area, come on!" as-93134 suffers critical hit (Destroy). Destroyed Asb. F-torch. Map ----- +----------------------------------------------------+ | ?????????????????????????????????????????????????? | | ?????????????????????????????????????????????????? | | ?????????????????????????????????????????????????? | | ?????????????????????????????????????????????????? | | ?????????????????????????????????????????????????? | | ?????????????????????????????????????????????????? | | ?????????????????????????????????????????????????? | | ?????????????????????????????????????????????????? | | ?????????????????????????????????????????????????? | | ?????????????????????????????????????????????????? | | ?????????????????????????????????????????????????? | | ?????????????????????????????????????????????????? | | ?????????????????????????????????????????????????? | | ?????????????????????????????????????????????????? | | ?????????????????????????????????????????????????? | | ??????????????????????????###????????????????????? | | ??????????????????????????# ????????????????????? | | ??????????????????????????# #????????????????????? | | ??????????????????????????# ##???????????????????? | | ?????????????????????????## ##??????????????????? | | ????????????????????###### ##?????????????????? | | ????????????????????# ##????????????????? | | ????????????????????# ? a ##???????????????? | | ????????????????????# ### ## ##??????????????? | | ???????????????????## ### ## #??????????????? | | ???????????????????# aaa@## #??????????????? | | ??????????????????#a ###### #??????????????? | | ?????????????????# ? ##????# ##??????????????? | | ????????????????# ##??????# ###???????????????? | | ???????????????# #????????# #?????????????????? | | ?????????????? #?????????# #?????????????????? | | ???????????? #??????????# #?????????????????? | | ??????????? ???????????# ?????????????????? | | ??????????# ????????????# ?????????????????? | | ??????????# ?????????????####?????????????????? | | ??????????? ???????????????????????????????????? | | ??????????? ????????????????????????????????????? | | ?????????????????????????????????????????????????? | | ?????????????????????????????????????????????????? | | ?????????????????????????????????????????????????? | | ?????????????????????????????????????????????????? | | ?????????????????????????????????????????????????? | | ?????????????????????????????????????????????????? | | ?????????????????????????????????????????????????? | | ?????????????????????????????????????????????????? | | ?????????????????????????????????????????????????? | | ?????????????????????????????????????????????????? | | ?????????????????????????????????????????????????? | | ?????????????????????????????????????????????????? | | ?????????????????????????????????????????????????? | +----------------------------------------------------+ Best States ------------- Heat Dissipation 25 Energy Generation 10 Energy Capacity 250 Matter Stores 300 Matter Capacity 300 Sight Range 16 Robot Scan Range 14 Terrain Scan Density 10 Armor Coverage 150 Evasion (%) 40 Recoil Reduction 2 Item Schematics ----------------- None Robot Schematics ------------------ None Fabricated ------------ Nothing Alien Tech Used ----------------- None Achievements -------------- None Challenges ------------ None Game ------ Seed MiningCoilTerrabomb Manual? 0 Play Time 00:14:05 Cumulative 282.5 hours Start 2024.07.11 @ 16:16:24 End 2024.07.11 @ 16:30:15 Sessions 1 Manual Loads 0 Difficulty Rogue Special Mode None Game No. 231 Rogue 231 Adventurer 0 Explorer 0 Win Type - Total 23 Types 17/1/2/1/1/0/0/1/0 Lore% 77 Gallery% 86 Achievement% 89 Wizard Run 0 Options --------- Layout 1 ASCII 0 Keyboard 0 Movement Numpad Keybinds 0 Fullscreen 1 Font 24/Smallcaps Map View 50x35 Zoom Use 0% Tactical HUD 1 Map Filters NONE Filters NONE Steam 1 RUN: 3f8beae6-8db2-48fe-840d-ebfb01d83703